[Event "*** Titled Tuesday Blitz"]
[Site "Chess.com"]
[Date "2019.08.06"]
[Round "4"]
[White "Evgeny81"]
[Black "qqwow"]
[Result "0-1"]
[WhiteElo "2514"]
[BlackElo "2520"]
[TimeControl "180+2"]
[EndTime "13:51:40 PDT"]
[Termination "qqwow won by resignation"]

1. Nf3 {[%clk 0:03:01.9]} 1... f5 {[%clk 0:02:59]} 2. g3 {[%clk 0:03:00.4]} 2...
Nf6 {[%clk 0:03:00.2]} 3. Bg2 {[%clk 0:03:01.6]} 3... e6 {[%clk 0:03:01.8]} 4.
O-O {[%clk 0:03:01.9]} 4... Be7 {[%clk 0:03:03.4]} 5. d3 {[%clk 0:03:00.2]} 5...
d6 {[%clk 0:03:04]} 6. Nc3 {[%clk 0:02:58.9]} 6... e5 {[%clk 0:03:03.6]} 7. e4
{[%clk 0:03:00.2]} 7... Nc6 {[%clk 0:03:04.2]} 8. exf5 {[%clk 0:02:59.8]} 8...
Bxf5 {[%clk 0:03:05]} 9. d4 {[%clk 0:03:01.3]} 9... e4 {[%clk 0:02:56.5]} 10.
Nh4 {[%clk 0:02:57.6]} 10... Bg4 {[%clk 0:02:57.1]} 11. f3 {[%clk 0:02:55]}
11... exf3 {[%clk 0:02:58.1]} 12. Bxf3 {[%clk 0:02:56.4]} 12... Bxf3 {[%clk
0:02:58.7]} 13. Qxf3 {[%clk 0:02:56.9]} 13... Nxd4 {[%clk 0:02:52.2]} 14. Qxb7
{[%clk 0:02:55.5]} 14... O-O {[%clk 0:02:50.7]} 15. Be3 {[%clk 0:02:48.8]} 15...
Rb8 {[%clk 0:02:36.7]} 16. Qg2 {[%clk 0:02:48.6]} 16... c5 {[%clk 0:02:32.5]}
17. b3 {[%clk 0:02:12.7]} 17... d5 {[%clk 0:02:10]} 18. Rad1 {[%clk 0:01:59.6]}
18... Qd7 {[%clk 0:01:37.7]} 19. h3 {[%clk 0:01:21.4]} 19... Rbd8 {[%clk
0:01:32.8]} 20. Na4 {[%clk 0:01:16.3]} 20... Ne4 {[%clk 0:01:25.8]} 21. Rxf8+
{[%clk 0:00:55.6]} 21... Rxf8 {[%clk 0:01:22.7]} 22. Nxc5 {[%clk 0:00:44.2]}
22... Bxc5 {[%clk 0:01:23.5]} 23. Bxd4 {[%clk 0:00:45.6]} 23... Bxd4+ {[%clk
0:01:22.8]} 24. Rxd4 {[%clk 0:00:46.7]} 24... Qe6 {[%clk 0:01:16]} 25. Nf3
{[%clk 0:00:32.1]} 25... h6 {[%clk 0:01:09.1]} 26. Kh2 {[%clk 0:00:28.5]} 26...
Nf6 {[%clk 0:01:01.3]} 27. Rd3 {[%clk 0:00:21]} 27... Re8 {[%clk 0:01:02.1]} 28.
Nd4 {[%clk 0:00:21.2]} 28... Qe1 {[%clk 0:00:59.3]} 29. Qg1 {[%clk 0:00:19.2]}
29... Qe5 {[%clk 0:00:56.7]} 30. Qf2 {[%clk 0:00:13.9]} 30... a5 {[%clk
0:00:52.2]} 31. a4 {[%clk 0:00:09.3]} 31... Qc7 {[%clk 0:00:36.4]} 32. Rd1
{[%clk 0:00:08.9]} 32... Qc3 {[%clk 0:00:33.7]} 33. Rd3 {[%clk 0:00:09.9]} 33...
Qc7 {[%clk 0:00:34.3]} 34. Re3 {[%clk 0:00:10.2]} 34... Ne4 {[%clk 0:00:35.1]}
35. Qg2 {[%clk 0:00:10]} 35... Qc5 {[%clk 0:00:32.7]} 36. Rd3 {[%clk 0:00:11.2]}
36... Qc7 {[%clk 0:00:28.9]} 37. Qf3 {[%clk 0:00:11.7]} 37... Rf8 {[%clk
0:00:29.7]} 38. Nf5 {[%clk 0:00:10.3]} 38... Ng5 {[%clk 0:00:25.7]} 39. Qxd5+
{[%clk 0:00:09.1]} 39... Kh7 {[%clk 0:00:25.2]} 40. h4 {[%clk 0:00:10.3]} 40...
Qxc2+ {[%clk 0:00:21.8]} 41. Kh1 {[%clk 0:00:08.8]} 41... Nh3 {[%clk 0:00:18.2]}
42. Qf3 {[%clk 0:00:05.9]} 42... Nf2+ {[%clk 0:00:17.7]} 43. Kg1 {[%clk
0:00:05.4]} 43... Nxd3 {[%clk 0:00:17.8]} 0-1

[Event "*** Titled Tuesday Blitz"]
[Site "Chess.com"]
[Date "2019.08.06"]
[Round "4"]
[White "marianokar"]
[Black "Arystanner"]
[Result "0-1"]
[WhiteElo "2427"]
[BlackElo "2666"]
[TimeControl "180+2"]
[EndTime "13:51:41 PDT"]
[Termination "Arystanner won on time"]

1. d4 {[%clk 0:03:01.9]} 1... d5 {[%clk 0:02:59.6]} 2. c4 {[%clk 0:03:01.7]}
2... e6 {[%clk 0:03:00.8]} 3. Nc3 {[%clk 0:02:59.5]} 3... a6 {[%clk 0:03:02.1]}
4. cxd5 {[%clk 0:02:59.8]} 4... exd5 {[%clk 0:03:04]} 5. Bf4 {[%clk 0:03:00.3]}
5... Nf6 {[%clk 0:03:02.6]} 6. e3 {[%clk 0:03:00.5]} 6... Bd6 {[%clk 0:03:03.1]}
7. Bxd6 {[%clk 0:02:59.1]} 7... Qxd6 {[%clk 0:03:04]} 8. Bd3 {[%clk 0:03:01]}
8... O-O {[%clk 0:03:03.1]} 9. h3 {[%clk 0:02:54.7]} 9... c6 {[%clk 0:02:56.5]}
10. Nge2 {[%clk 0:02:54.9]} 10... Re8 {[%clk 0:02:52.7]} 11. Qc2 {[%clk
0:02:55.8]} 11... Nbd7 {[%clk 0:02:54.5]} 12. g4 {[%clk 0:02:52.5]} 12... Qe7
{[%clk 0:02:40.3]} 13. Ng3 {[%clk 0:02:50.3]} 13... Nf8 {[%clk 0:02:32.7]} 14.
g5 {[%clk 0:02:50.8]} 14... N6d7 {[%clk 0:02:33.5]} 15. h4 {[%clk 0:02:40.2]}
15... Nb6 {[%clk 0:02:29]} 16. O-O-O {[%clk 0:02:36.6]} 16... c5 {[%clk
0:02:28.8]} 17. dxc5 {[%clk 0:02:31.6]} 17... Qxc5 {[%clk 0:02:28.5]} 18. h5
{[%clk 0:02:27.9]} 18... Bg4 {[%clk 0:02:28.3]} 19. Rd2 {[%clk 0:02:27]} 19...
Bf3 {[%clk 0:02:22.4]} 20. Rh4 {[%clk 0:02:24.4]} 20... d4 {[%clk 0:02:18.9]}
21. Rxd4 {[%clk 0:02:16.2]} 21... Qxg5 {[%clk 0:02:18.7]} 22. Rf4 {[%clk
0:02:12.5]} 22... Bc6 {[%clk 0:02:12.7]} 23. Kb1 {[%clk 0:01:57.1]} 23... Ne6
{[%clk 0:02:10]} 24. Bxh7+ {[%clk 0:01:53.2]} 24... Kf8 {[%clk 0:02:09.8]} 25.
Rf5 {[%clk 0:01:48.9]} 25... Qh4 {[%clk 0:02:08.7]} 26. Bg6 {[%clk 0:01:49.7]}
26... f6 {[%clk 0:02:08.4]} 27. Bxe8 {[%clk 0:01:50]} 27... Rxe8 {[%clk
0:02:09.3]} 28. Qb3 {[%clk 0:01:27.7]} 28... Nc4 {[%clk 0:02:07.8]} 29. Rd1
{[%clk 0:00:53.2]} 29... b5 {[%clk 0:02:06.7]} 30. Nd5 {[%clk 0:00:44.4]} 30...
Kf7 {[%clk 0:01:45.5]} 31. Qc3 {[%clk 0:00:39.4]} 31... Nc5 {[%clk 0:01:39.7]}
32. Rf4 {[%clk 0:00:33.6]} 32... Qg5 {[%clk 0:01:33.9]} 33. Rxc4 {[%clk
0:00:33.8]} 33... bxc4 {[%clk 0:01:25.6]} 34. Qxc4 {[%clk 0:00:34.9]} 34... Re5
{[%clk 0:01:08.7]} 35. f4 {[%clk 0:00:20.7]} 35... Qg4 {[%clk 0:01:06.3]} 36.
Nc3+ {[%clk 0:00:14.4]} 36... Re6 {[%clk 0:01:02.7]} 37. Qxc5 {[%clk 0:00:14.2]}
37... Qxg3 {[%clk 0:01:03.6]} 38. f5 {[%clk 0:00:14.7]} 38... Be4+ {[%clk
0:00:56.9]} 39. Ka1 {[%clk 0:00:15.3]} 39... Rc6 {[%clk 0:00:55.4]} 40. Qa7+
{[%clk 0:00:14.3]} 40... Rc7 {[%clk 0:00:56.2]} 41. Qb6 {[%clk 0:00:13.6]} 41...
Bc2 {[%clk 0:00:54.8]} 42. Rc1 {[%clk 0:00:12.3]} 42... Kg8 {[%clk 0:00:53.2]}
43. Qe6+ {[%clk 0:00:12.4]} 43... Kh7 {[%clk 0:00:54.4]} 44. e4 {[%clk
0:00:12.6]} 44... Rxc3 {[%clk 0:00:55]} 45. h6 {[%clk 0:00:12.1]} 45... Bb3
{[%clk 0:00:52]} 46. axb3 {[%clk 0:00:06.8]} 46... Rxc1+ {[%clk 0:00:51.3]} 47.
Ka2 {[%clk 0:00:08.7]} 47... Qe1 {[%clk 0:00:49.6]} 48. b4 {[%clk 0:00:08.3]}
48... Ra1+ {[%clk 0:00:47.3]} 0-1

[Event "*** Titled Tuesday Blitz"]
[Site "Chess.com"]
[Date "2019.08.06"]
[Round "4"]
[White "Polish_fighter3000"]
[Black "temus_galaktionov"]
[Result "1-0"]
[WhiteElo "2974"]
[BlackElo "2681"]
[TimeControl "180+2"]
[EndTime "13:51:49 PDT"]
[Termination "Polish_fighter3000 won by resignation"]

1. c4 {[%clk 0:03:01.9]} 1... c6 {[%clk 0:03:01.9]} 2. Nf3 {[%clk 0:02:59.5]}
2... g6 {[%clk 0:03:03.8]} 3. d4 {[%clk 0:02:54.8]} 3... Bg7 {[%clk 0:03:05.7]}
4. Nc3 {[%clk 0:02:56]} 4... d6 {[%clk 0:03:05]} 5. h3 {[%clk 0:02:54.1]} 5...
Nd7 {[%clk 0:03:05.9]} 6. b4 {[%clk 0:02:36.5]} 6... a5 {[%clk 0:02:40.5]} 7. b5
{[%clk 0:02:36.3]} 7... Ngf6 {[%clk 0:02:20.1]} 8. e3 {[%clk 0:02:32.8]} 8...
O-O {[%clk 0:02:20.8]} 9. bxc6 {[%clk 0:02:28.6]} 9... bxc6 {[%clk 0:02:21.4]}
10. Rb1 {[%clk 0:02:30.5]} 10... Ba6 {[%clk 0:02:21.3]} 11. Be2 {[%clk
0:02:29.4]} 11... Rb8 {[%clk 0:02:20.5]} 12. Rb3 {[%clk 0:02:27.5]} 12... Rb4
{[%clk 0:02:16.2]} 13. Nd2 {[%clk 0:02:12]} 13... Qc7 {[%clk 0:01:52.3]} 14. Ba3
{[%clk 0:02:11.4]} 14... Rb7 {[%clk 0:01:48]} 15. O-O {[%clk 0:02:07.5]} 15...
Rfb8 {[%clk 0:01:48.1]} 16. Qc2 {[%clk 0:02:06.2]} 16... Bf8 {[%clk 0:01:46]}
17. Rfb1 {[%clk 0:02:05]} 17... e5 {[%clk 0:01:41.2]} 18. Qd1 {[%clk 0:02:03.6]}
18... exd4 {[%clk 0:01:26.6]} 19. exd4 {[%clk 0:02:05.5]} 19... d5 {[%clk
0:01:27.7]} 20. Bxf8 {[%clk 0:02:02.5]} 20... Nxf8 {[%clk 0:01:23.6]} 21. c5
{[%clk 0:01:16.7]} 21... Bxe2 {[%clk 0:01:21.9]} 22. Qxe2 {[%clk 0:01:17]} 22...
Ne6 {[%clk 0:01:22.3]} 23. Nf3 {[%clk 0:01:18.4]} 23... Rxb3 {[%clk 0:01:20.8]}
24. Rxb3 {[%clk 0:01:20.3]} 24... Rxb3 {[%clk 0:01:21.7]} 25. axb3 {[%clk
0:01:22.2]} 25... Qb7 {[%clk 0:01:21]} 26. Qd1 {[%clk 0:01:00.5]} 26... Qb4
{[%clk 0:01:21]} 27. Ne2 {[%clk 0:01:02]} 27... Ne4 {[%clk 0:01:21.1]} 28. Ne5
{[%clk 0:01:02.4]} 28... Qb5 {[%clk 0:01:11.4]} 29. f3 {[%clk 0:00:59.5]} 29...
Nf6 {[%clk 0:01:07.9]} 30. g4 {[%clk 0:00:57.3]} 30... Kf8 {[%clk 0:01:06.5]}
31. Kf2 {[%clk 0:00:57.2]} 31... Ke7 {[%clk 0:01:06.8]} 32. h4 {[%clk
0:00:57.6]} 32... Nd7 {[%clk 0:01:07.8]} 33. Nd3 {[%clk 0:00:56.4]} 33... Qb8
{[%clk 0:00:59.8]} 34. Kg2 {[%clk 0:00:55.1]} 34... h6 {[%clk 0:00:56.1]} 35.
Qc2 {[%clk 0:00:55.8]} 35... g5 {[%clk 0:00:56.5]} 36. h5 {[%clk 0:00:56.5]}
36... Qb5 {[%clk 0:00:53.5]} 37. Qc3 {[%clk 0:00:50.1]} 37... Kf8 {[%clk
0:00:47.6]} 38. Kf2 {[%clk 0:00:47.3]} 38... Ke7 {[%clk 0:00:38.4]} 39. Ng3
{[%clk 0:00:43.9]} 39... Ng7 {[%clk 0:00:35.5]} 40. Ke3 {[%clk 0:00:36.5]} 40...
Qb8 {[%clk 0:00:33.9]} 41. Kf2 {[%clk 0:00:37.6]} 41... Qb5 {[%clk 0:00:34.4]}
42. Qc2 {[%clk 0:00:38.4]} 42... Kf8 {[%clk 0:00:33.9]} 43. Nc1 {[%clk
0:00:32.4]} 43... Qb4 {[%clk 0:00:33.9]} 44. Nce2 {[%clk 0:00:33.7]} 44... Nf6
{[%clk 0:00:29.1]} 45. Qd3 {[%clk 0:00:33.9]} 45... Qa3 {[%clk 0:00:25.2]} 46.
Qa6 {[%clk 0:00:29.6]} 46... Qxb3 {[%clk 0:00:25.2]} 47. Qxc6 {[%clk 0:00:27.6]}
47... Ne6 {[%clk 0:00:21]} 48. Nf5 {[%clk 0:00:26]} 48... Ne8 {[%clk 0:00:21.1]}
49. Qd7 {[%clk 0:00:21.1]} 49... N8g7 {[%clk 0:00:17.2]} 50. Nxh6 {[%clk
0:00:21.5]} 1-0

[Event "*** Titled Tuesday Blitz"]
[Site "Chess.com"]
[Date "2019.08.06"]
[Round "4"]
[White "payto1"]
[Black "ChessFunMaker"]
[Result "1-0"]
[WhiteElo "2344"]
[BlackElo "2227"]
[TimeControl "180+2"]
[EndTime "13:51:50 PDT"]
[Termination "payto1 won by resignation"]

1. d4 {[%clk 0:03:01.9]} 1... Nf6 {[%clk 0:02:55.9]} 2. c4 {[%clk 0:03:02]} 2...
g6 {[%clk 0:02:57.2]} 3. Nc3 {[%clk 0:03:02.5]} 3... Bg7 {[%clk 0:02:58.8]} 4.
e4 {[%clk 0:03:03.6]} 4... O-O {[%clk 0:03:00.2]} 5. Be2 {[%clk 0:03:03.8]} 5...
d6 {[%clk 0:03:01.3]} 6. Nf3 {[%clk 0:03:04.5]} 6... e5 {[%clk 0:02:59.8]} 7. d5
{[%clk 0:03:04.9]} 7... a5 {[%clk 0:03:00]} 8. h3 {[%clk 0:03:06]} 8... Na6
{[%clk 0:02:58.7]} 9. Bg5 {[%clk 0:03:07.5]} 9... h6 {[%clk 0:02:58.5]} 10. Be3
{[%clk 0:03:07.9]} 10... Nc5 {[%clk 0:02:58.9]} 11. Nd2 {[%clk 0:03:08.7]} 11...
Ne8 {[%clk 0:02:54.5]} 12. g4 {[%clk 0:03:08.4]} 12... f5 {[%clk 0:02:55.4]} 13.
exf5 {[%clk 0:03:08.5]} 13... gxf5 {[%clk 0:02:56.7]} 14. Rg1 {[%clk 0:03:09]}
14... f4 {[%clk 0:02:47.3]} 15. Bxc5 {[%clk 0:03:07.8]} 15... dxc5 {[%clk
0:02:49.2]} 16. Nde4 {[%clk 0:03:08.7]} 16... Qh4 {[%clk 0:02:29.5]} 17. Qd3
{[%clk 0:03:02]} 17... b6 {[%clk 0:01:47.8]} 18. d6 {[%clk 0:03:00.9]} 18... Be6
{[%clk 0:01:14.3]} 19. dxc7 {[%clk 0:02:51.4]} 19... Nxc7 {[%clk 0:01:08.9]} 20.
Qd6 {[%clk 0:02:51]} 20... Rac8 {[%clk 0:01:04.9]} 21. Qxb6 {[%clk 0:02:45.1]}
21... f3 {[%clk 0:00:55.4]} 22. Bf1 {[%clk 0:02:43.1]} 22... Bf7 {[%clk
0:00:42.4]} 23. O-O-O {[%clk 0:02:29.6]} 23... Ne6 {[%clk 0:00:43.7]} 24. Rd7
{[%clk 0:02:19.4]} 24... Nd4 {[%clk 0:00:36.4]} 25. g5 {[%clk 0:02:08.1]} 25...
hxg5 {[%clk 0:00:19.9]} 26. Rxg5 {[%clk 0:02:06.5]} 26... Kh8 {[%clk 0:00:18.8]}
27. Kb1 {[%clk 0:01:43.9]} 27... Ne2 {[%clk 0:00:18]} 28. Rg4 {[%clk 0:01:31.9]}
28... Nxc3+ {[%clk 0:00:16.2]} 29. Nxc3 {[%clk 0:01:31]} 29... Qxf2 {[%clk
0:00:17.5]} 30. Bd3 {[%clk 0:01:26.6]} 30... Qe1+ {[%clk 0:00:17.6]} 31. Kc2
{[%clk 0:01:26.4]} 31... Qf2+ {[%clk 0:00:11.5]} 32. Kd1 {[%clk 0:01:16.2]}
32... Rb8 {[%clk 0:00:11.1]} 33. Rb7 {[%clk 0:00:55.2]} 33... Rxb7 {[%clk
0:00:12.4]} 34. Qxb7 {[%clk 0:00:53.9]} 34... Rd8 {[%clk 0:00:09.9]} 35. Qe4
{[%clk 0:00:53.7]} 35... Rxd3+ {[%clk 0:00:03.8]} 36. Qxd3 {[%clk 0:00:53.9]}
36... Qd4 {[%clk 0:00:03.5]} 37. Rxd4 {[%clk 0:00:54]} 37... cxd4 {[%clk
0:00:04.1]} 38. Qxf3 {[%clk 0:00:53.1]} 38... Bxc4 {[%clk 0:00:04.7]} 39. Ne4
{[%clk 0:00:51.8]} 39... Bd5 {[%clk 0:00:04.7]} 40. Qh5+ {[%clk 0:00:51.3]}
40... Kg8 {[%clk 0:00:06]} 41. Ng5 {[%clk 0:00:51.9]} 41... Kf8 {[%clk
0:00:03.2]} 42. Qg6 {[%clk 0:00:51.3]} 42... Bxa2 {[%clk 0:00:02.5]} 43. Ne6+
{[%clk 0:00:50.9]} 43... Bxe6 {[%clk 0:00:02.8]} 44. Qxe6 {[%clk 0:00:52.3]}
44... a4 {[%clk 0:00:03.3]} 45. Qd6+ {[%clk 0:00:51.9]} 45... Kf7 {[%clk
0:00:04.1]} 46. Qd7+ {[%clk 0:00:52.4]} 46... Kg6 {[%clk 0:00:05.3]} 47. Qxa4
{[%clk 0:00:52.4]} 47... Bf6 {[%clk 0:00:07.2]} 48. Qc2+ {[%clk 0:00:52.3]}
48... Kg5 {[%clk 0:00:08.3]} 49. Qe4 {[%clk 0:00:53.3]} 49... Kh6 {[%clk
0:00:06.9]} 50. b4 {[%clk 0:00:53]} 50... Kg7 {[%clk 0:00:08.8]} 51. b5 {[%clk
0:00:53.9]} 51... Kf7 {[%clk 0:00:06.1]} 52. b6 {[%clk 0:00:54.9]} 52... Bd8
{[%clk 0:00:07.1]} 53. b7 {[%clk 0:00:54.6]} 53... Bc7 {[%clk 0:00:08.6]} 54.
Qh7+ {[%clk 0:00:55]} 1-0

[Event "*** Titled Tuesday Blitz"]
[Site "Chess.com"]
[Date "2019.08.06"]
[Round "4"]
[White "WeAintSurePal"]
[Black "RandomOracle"]
[Result "1-0"]
[WhiteElo "2309"]
[BlackElo "2199"]
[TimeControl "180+2"]
[EndTime "13:51:50 PDT"]
[Termination "WeAintSurePal won on time"]

1. Nf3 {[%clk 0:03:01.9]} 1... Nf6 {[%clk 0:02:56.6]} 2. b3 {[%clk 0:02:56.8]}
2... d5 {[%clk 0:02:56.3]} 3. Bb2 {[%clk 0:02:51.1]} 3... c5 {[%clk 0:02:56.9]}
4. e3 {[%clk 0:02:51.3]} 4... g6 {[%clk 0:02:43.3]} 5. c4 {[%clk 0:02:49.1]}
5... Bg7 {[%clk 0:02:40]} 6. cxd5 {[%clk 0:02:50.1]} 6... O-O {[%clk 0:02:37.4]}
7. Be2 {[%clk 0:02:50]} 7... Nxd5 {[%clk 0:02:35.4]} 8. Qc1 {[%clk 0:02:48.5]}
8... Bxb2 {[%clk 0:02:20.5]} 9. Qxb2 {[%clk 0:02:50.4]} 9... Nc6 {[%clk
0:02:17.6]} 10. O-O {[%clk 0:02:49.7]} 10... b6 {[%clk 0:02:10.6]} 11. Ne5
{[%clk 0:02:48.4]} 11... Bb7 {[%clk 0:01:33.1]} 12. f4 {[%clk 0:02:40.4]} 12...
Ndb4 {[%clk 0:01:02.2]} 13. a3 {[%clk 0:02:36.4]} 13... Nxe5 {[%clk 0:01:02.5]}
14. Qxe5 {[%clk 0:02:33.3]} 14... Nd3 {[%clk 0:00:56.7]} 15. Qc3 {[%clk
0:02:31.4]} 15... Be4 {[%clk 0:00:49.7]} 16. f5 {[%clk 0:02:22.9]} 16... Qd5
{[%clk 0:00:40.9]} 17. Qc4 {[%clk 0:01:57.1]} 17... Qxc4 {[%clk 0:00:31.8]} 18.
bxc4 {[%clk 0:01:59]} 18... Bxf5 {[%clk 0:00:31.1]} 19. Rxf5 {[%clk 0:01:59]}
19... gxf5 {[%clk 0:00:29.7]} 20. Bxd3 {[%clk 0:02:00]} 20... e6 {[%clk
0:00:30.9]} 21. Be2 {[%clk 0:02:01]} 21... Rad8 {[%clk 0:00:31.3]} 22. Ra2
{[%clk 0:02:01.9]} 22... Rd6 {[%clk 0:00:28.9]} 23. Kf2 {[%clk 0:02:03]} 23...
Rfd8 {[%clk 0:00:29.5]} 24. a4 {[%clk 0:02:03.2]} 24... Kg7 {[%clk 0:00:27]} 25.
Ke1 {[%clk 0:02:02]} 25... Kf6 {[%clk 0:00:26.3]} 26. a5 {[%clk 0:02:01.5]}
26... Rg8 {[%clk 0:00:23.7]} 27. g3 {[%clk 0:02:02.2]} 27... e5 {[%clk
0:00:22.4]} 28. Nc3 {[%clk 0:02:01.2]} 28... Ke6 {[%clk 0:00:20.7]} 29. Nd5
{[%clk 0:01:59.1]} 29... Rb8 {[%clk 0:00:15.8]} 30. axb6 {[%clk 0:01:54.4]}
30... axb6 {[%clk 0:00:16.5]} 31. Ra6 {[%clk 0:01:54.8]} 31... f6 {[%clk
0:00:03.1]} 32. Ra7 {[%clk 0:01:55.3]} 32... Rd7 {[%clk 0:00:02.6]} 33. Rxd7
{[%clk 0:01:52.9]} 33... Kxd7 {[%clk 0:00:02]} 34. Nxf6+ {[%clk 0:01:54.8]}
34... Kd6 {[%clk 0:00:02.7]} 35. Nd5 {[%clk 0:01:49.8]} 35... b5 {[%clk
0:00:03.1]} 36. Kd1 {[%clk 0:01:49.1]} 36... b4 {[%clk 0:00:04.1]} 37. Kc2
{[%clk 0:01:50.2]} 37... Ra8 {[%clk 0:00:03.2]} 38. Kb2 {[%clk 0:01:51.3]} 38...
h6 {[%clk 0:00:03.8]} 39. Bf3 {[%clk 0:01:50.3]} 39... Ra7 {[%clk 0:00:04.3]}
40. h3 {[%clk 0:01:47.5]} 40... Ke6 {[%clk 0:00:03.9]} 41. g4 {[%clk 0:01:47.7]}
41... Rg7 {[%clk 0:00:02.5]} 42. d3 {[%clk 0:01:44.1]} 42... fxg4 {[%clk
0:00:02.4]} 43. hxg4 {[%clk 0:01:43.3]} 43... Rf7 {[%clk 0:00:02.7]} 44. Be4
{[%clk 0:01:43.5]} 44... Rf2+ {[%clk 0:00:03.2]} 45. Kb3 {[%clk 0:01:45]} 45...
Rf1 {[%clk 0:00:03.1]} 46. Bf5+ {[%clk 0:01:44.7]} 46... Kd6 {[%clk 0:00:04.1]}
47. Nf6 {[%clk 0:01:44.7]} 47... Kc6 {[%clk 0:00:03.1]} 48. Ne4 {[%clk 0:01:35]}
48... Kb6 {[%clk 0:00:03.6]} 49. Nd6 {[%clk 0:01:27.9]} 49... Re1 {[%clk
0:00:03.4]} 50. Nf7 {[%clk 0:01:18.5]} 50... Rxe3 {[%clk 0:00:02.8]} 51. Nxh6
{[%clk 0:01:20]} 51... Ka5 {[%clk 0:00:03.1]} 52. Nf7 {[%clk 0:01:20.5]} 52...
Rg3 {[%clk 0:00:03.1]} 53. Nxe5 {[%clk 0:01:20.8]} 53... Rg1 {[%clk 0:00:02.9]}
54. Nd7 {[%clk 0:01:19.4]} 1-0

[Event "*** Titled Tuesday Blitz"]
[Site "Chess.com"]
[Date "2019.08.06"]
[Round "4"]
[White "Gubajdullin"]
[Black "biostatistician"]
[Result "1-0"]
[WhiteElo "2603"]
[BlackElo "2548"]
[TimeControl "180+2"]
[EndTime "13:51:55 PDT"]
[Termination "Gubajdullin won on time"]

1. d4 {[%clk 0:03:01.9]} 1... Nf6 {[%clk 0:03:00.5]} 2. Bf4 {[%clk 0:03:01.8]}
2... g6 {[%clk 0:03:01.5]} 3. e3 {[%clk 0:03:01]} 3... Bg7 {[%clk 0:03:02.5]} 4.
Nf3 {[%clk 0:03:01.4]} 4... O-O {[%clk 0:03:03.8]} 5. Be2 {[%clk 0:03:02.6]}
5... c5 {[%clk 0:03:05.3]} 6. O-O {[%clk 0:03:02.5]} 6... b6 {[%clk 0:03:02.9]}
7. h3 {[%clk 0:03:02.2]} 7... Bb7 {[%clk 0:03:03.9]} 8. a4 {[%clk 0:03:02.9]}
8... Nc6 {[%clk 0:03:04.5]} 9. c3 {[%clk 0:03:01.8]} 9... d6 {[%clk 0:03:04]}
10. Qb3 {[%clk 0:02:50.1]} 10... Qc7 {[%clk 0:02:59.8]} 11. Na3 {[%clk
0:02:47.1]} 11... Na5 {[%clk 0:02:57.3]} 12. Qd1 {[%clk 0:02:34.9]} 12... Rac8
{[%clk 0:02:54.3]} 13. Nb5 {[%clk 0:02:29.3]} 13... Qb8 {[%clk 0:02:55.3]} 14.
dxc5 {[%clk 0:02:29.9]} 14... bxc5 {[%clk 0:02:54.6]} 15. Nxd6 {[%clk
0:02:23.7]} 15... exd6 {[%clk 0:02:49.3]} 16. Bxd6 {[%clk 0:02:24.4]} 16... Qa8
{[%clk 0:02:50.9]} 17. Bxf8 {[%clk 0:02:24.8]} 17... Bxf8 {[%clk 0:02:47.9]} 18.
b4 {[%clk 0:02:14.3]} 18... cxb4 {[%clk 0:02:48.5]} 19. cxb4 {[%clk 0:02:14.3]}
19... Nc6 {[%clk 0:02:49.8]} 20. b5 {[%clk 0:02:12.3]} 20... Nb4 {[%clk
0:02:47.7]} 21. Qd4 {[%clk 0:02:09.1]} 21... Ne4 {[%clk 0:02:28.2]} 22. Rac1
{[%clk 0:02:05.1]} 22... Rd8 {[%clk 0:02:05.8]} 23. Qb2 {[%clk 0:02:04]} 23...
Nd3 {[%clk 0:01:18.3]} 24. Bxd3 {[%clk 0:02:03.3]} 24... Rxd3 {[%clk 0:01:20.2]}
25. Ne5 {[%clk 0:01:31.1]} 25... Rd5 {[%clk 0:00:53.4]} 26. Nc6 {[%clk
0:01:28.3]} 26... Nc5 {[%clk 0:00:47.4]} 27. e4 {[%clk 0:00:44.4]} 27... Nxe4
{[%clk 0:00:47.2]} 28. Rfe1 {[%clk 0:00:41.9]} 28... Nc5 {[%clk 0:00:45.3]} 29.
Qf6 {[%clk 0:00:38.2]} 29... Nd3 {[%clk 0:00:15.9]} 30. Rcd1 {[%clk 0:00:15.4]}
30... Rd6 {[%clk 0:00:09.9]} 31. Ne7+ {[%clk 0:00:14.6]} 31... Bxe7 {[%clk
0:00:10.7]} 32. Qxe7 {[%clk 0:00:15.4]} 32... Qd8 {[%clk 0:00:11.8]} 33. Qxd8+
{[%clk 0:00:13.7]} 33... Rxd8 {[%clk 0:00:13.7]} 34. Re3 {[%clk 0:00:14.6]}
34... Rd4 {[%clk 0:00:10.7]} 35. Rdxd3 {[%clk 0:00:13.5]} 35... Rxa4 {[%clk
0:00:12.2]} 36. Rd7 {[%clk 0:00:14.3]} 36... Be4 {[%clk 0:00:10.7]} 37. f3
{[%clk 0:00:14.2]} 37... Bf5 {[%clk 0:00:12.2]} 38. Rb7 {[%clk 0:00:11]} 38...
Be6 {[%clk 0:00:12.3]} 39. Rc3 {[%clk 0:00:11.6]} 39... Rb4 {[%clk 0:00:08.3]}
40. Rcc7 {[%clk 0:00:10.5]} 40... h5 {[%clk 0:00:09]} 41. Rc5 {[%clk 0:00:09]}
41... Bc4 {[%clk 0:00:08.8]} 42. Rxa7 {[%clk 0:00:07.9]} 42... Bxb5 {[%clk
0:00:04.6]} 43. Rb7 {[%clk 0:00:08]} 43... Rb1+ {[%clk 0:00:02.6]} 44. Kh2
{[%clk 0:00:08.3]} 1-0